bitfinex-derivatives/quotes_BTCF0:USTF0_20210708
["timestamp","ask_amount","ask_price","bid_price","bid_amount"]
[1625716537844,5.62573771,33330.0,33329.0,0.94487429]
[1625716537996,5.62573771,33330.0,33329.0,0.94897609]
[1625716538145,4.22830049,33330.0,33329.0,2.00540952]
[1625716538294,3.00501518,33330.0,33329.0,3.23788184]
[1625716538969,2.00501518,33330.0,33329.0,3.23788184]
[1625716539121,3.00501518,33330.0,33329.0,3.23788184]
[1625716539869,1.50471518,33330.0,33329.0,7.63848184]
[1625716540031,1.50471518,33330.0,33329.0,7.88591184]
[1625716540170,1.00431518,33330.0,33329.0,7.88591184]
[1625716540321,0.26358124,33331.0,33329.0,11.35955466]
[1625716540470,0.35114918,33332.0,33330.0,4.22384298]
[1625716540471,0.26351948,33332.0,33330.0,4.22384298]
[1625716540622,0.26351948,33332.0,33330.0,4.22796042]
[1625716540771,0.26351948,33332.0,33331.0,2.63987338]
[1625716540919,0.26351948,33332.0,33331.0,2.64397869]
[1625716541070,5.59660724,33333.0,33331.0,2.64397869]
[1625716541220,5.24554035,33333.0,33332.0,2.6398296]
[1625716541521,5.24554035,33333.0,33332.0,2.64393472]
[1625716541680,5.59663046,33333.0,33332.0,2.64393472]
[1625716541970,6.50872519,33333.0,33332.0,2.64393472]
[1625716542285,6.33309011,33333.0,33332.0,2.64393472]
[1625716542423,5.982,33333.0,33332.0,1.2360256]
[1625716542576,5.99734534,33333.0,33332.0,1.2360256]
[1625716542722,7.22444284,33333.0,33332.0,0.00410512]
[1625716543021,6.22444284,33333.0,33332.0,0.00410512]
[1625716543176,4.99734534,33333.0,33332.0,1.23599718]
[1625716543333,5.99734534,33333.0,33332.0,1.23599718]
[1625716543635,7.22411887,33333.0,33331.0,1.23186377]
[1625716543777,7.46270887,33333.0,33331.0,1.23186377]
[1625716544224,0.01535776,33332.0,33331.0,1.23186377]
[1625716544673,0.01535776,33332.0,33331.0,1.23596502]
[1625716545201,1.01535776,33332.0,33331.0,0.00410125]
[1625716545501,2.2416887,33332.0,33330.0,1.47240217]
[1625716546030,1.01536279,33331.0,33330.0,1.47240217]
[1625716546327,1.01536279,33331.0,33330.0,1.47650224]
[1625716549109,1.0,33331.0,33330.0,2.88424827]
[1625716549409,1.0,33331.0,33330.0,1.47650224]
[1625716550083,6.44555668,33333.0,33330.0,1.47650224]
[1625716550235,6.44555668,33333.0,33330.0,0.24467551]
[1625716550236,1.0,33331.0,33330.0,0.24467551]
[1625716550390,1.0,33331.0,33330.0,0.24057544]
[1625716550536,1.0,33331.0,33330.0,2.88007817]
[1625716550686,1.0,33331.0,33330.0,1.47644334]
[1625716553991,1.34967768,33331.0,33330.0,2.88428682]
[1625716554289,1.0,33331.0,33330.0,2.88428682]
[1625716554439,1.34960333,33331.0,33330.0,2.88428682]
[1625716554664,1.61197481,33331.0,33330.0,2.88428682]
[1625716555564,1.52445942,33331.0,33330.0,2.88428682]
[1625716555864,1.34960333,33331.0,33330.0,2.88428682]
[1625716556315,1.0,33331.0,33330.0,2.88428682]
[1625716557064,1.34963995,33331.0,33330.0,2.88428682]
[1625716557289,1.52459172,33331.0,33330.0,2.88428682]
[1625716558342,1.34963995,33331.0,33330.0,2.88428682]
[1625716558494,1.52463476,33331.0,33330.0,2.88428682]
[1625716558793,1.34963995,33331.0,33330.0,2.88428682]
[1625716559244,1.0,33331.0,33330.0,2.88428682]
[1625716560070,1.30823,33331.0,33330.0,2.88428682]
[1625716560222,1.30823,33331.0,33330.0,1.47644334]
[1625716560520,1.30823,33331.0,33330.0,2.88470061]
[1625716560821,0.30823,33331.0,33330.0,2.88470061]
[1625716561121,1.30823,33331.0,33330.0,2.88470061]
[1625716561499,1.30823,33331.0,33330.0,1.47644334]
[1625716561947,0.30823,33331.0,33330.0,1.47644334]
[1625716562097,0.30823,33331.0,33330.0,2.88483411]
[1625716562098,1.30823,33331.0,33330.0,2.88483411]
[1625716563150,0.30823,33331.0,33330.0,2.88483411]
[1625716563298,4.981,33333.0,33330.0,2.88483411]
[1625716563450,0.08772528,33331.0,33330.0,1.82931947]
[1625716563599,0.08772528,33331.0,33330.0,1.82521951]
[1625716563748,0.26295164,33331.0,33330.0,2.88163418]
[1625716563898,0.26295164,33331.0,33330.0,2.88574567]
[1625716564499,1.52515352,33331.0,33330.0,2.88574567]
[1625716565400,1.52515352,33331.0,33330.0,2.88574732]
[1625716565550,1.34992716,33331.0,33330.0,2.88574732]
[1625716566601,0.34992716,33331.0,33330.0,2.88574732]
[1625716566899,1.34992716,33331.0,33330.0,2.88574732]
[1625716567125,1.0,33331.0,33330.0,2.88574732]
[1625716569157,1.0,33332.0,33330.0,2.88574732]
[1625716569379,1.0,33332.0,33331.0,2.64282494]
[1625716569529,1.0,33332.0,33331.0,2.64693802]
[1625716569680,1.01531505,33332.0,33331.0,2.64693802]
[1625716570358,2.06658541,33332.0,33331.0,3.70407815]
[1625716571483,1.06658541,33332.0,33331.0,3.70407815]
[1625716572083,0.01531505,33332.0,33331.0,3.70407815]
[1625716573436,0.01531505,33332.0,33331.0,5.28960397]
[1625716573659,0.36626778,33332.0,33331.0,5.28960397]
[1625716573809,1.36626778,33332.0,33331.0,5.28960397]
[1625716573959,1.35095273,33332.0,33331.0,5.28960397]
[1625716574560,1.52653544,33332.0,33331.0,5.28960397]
[1625716574860,1.35095273,33332.0,33331.0,5.28960397]
[1625716575161,0.35095273,33332.0,33331.0,5.51710397]
[1625716575312,0.35095273,33332.0,33331.0,8.03847815]
[1625716575613,0.61454368,33332.0,33331.0,9.6236812]
[1625716575763,0.26366945,33333.0,33331.0,9.6236812]
[1625716576062,0.3522667,33334.0,33331.0,9.6236812]
[1625716576063,0.08898506,33334.0,33332.0,5.28788462]
[1625716576437,0.08798506,33334.0,33333.0,5.28784932]
[1625716576589,0.61620575,33335.0,33333.0,5.28784932]
[1625716576737,0.61620575,33335.0,33334.0,0.48115088]
[1625716576888,0.26479237,33335.0,33334.0,5.76897446]
[1625716577339,0.616216,33335.0,33334.0,5.76897446]
[1625716577487,0.52821813,33335.0,33334.0,4.18386117]
[1625716578090,0.35242363,33335.0,33334.0,4.18386117]
[1625716578240,0.52813175,33335.0,33334.0,4.18386117]
[1625716578541,0.35242363,33335.0,33334.0,4.17917191]
[1625716579291,0.52812339,33335.0,33334.0,4.17917191]
[1625716580643,0.26463246,33335.0,33334.0,5.7636952]
[1625716581167,0.61559401,33335.0,33334.0,4.17917191]
[1625716581317,0.26463246,33335.0,33334.0,4.17917191]
[1625716582219,0.61548474,33335.0,33334.0,4.17917191]
[1625716583417,0.26463246,33335.0,33334.0,4.17917191]
[1625716583718,0.61537514,33335.0,33334.0,4.17917191]
[1625716584243,0.26463246,33335.0,33334.0,4.17917191]
[1625716584543,0.61539962,33335.0,33334.0,4.17917191]
[1625716585370,0.61439962,33335.0,33334.0,4.17917191]
[1625716586798,0.52646692,33335.0,33334.0,4.17917191]
[1625716587546,0.61429824,33335.0,33334.0,4.17917191]
[1625716588530,0.52646692,33335.0,33334.0,4.17917191]
[1625716589725,0.61434644,33335.0,33334.0,4.17917191]
[1625716589876,1.60687716,33335.0,33334.0,4.17917191]
[1625716590104,0.25611,33335.0,33334.0,4.17917191]
[1625716590252,1.31311,33335.0,33334.0,4.17917191]
[1625716590402,1.31311,33335.0,33334.0,1.53789307]
[1625716590551,1.25611,33335.0,33334.0,0.48115088]
[1625716590701,1.25611,33335.0,33334.0,4.17870097]
[1625716592516,2.30873239,33335.0,33334.0,4.17870097]
[1625716592658,2.36573239,33335.0,33334.0,4.17870097]
[1625716593105,2.3810467,33335.0,33334.0,4.17870097]
[1625716594909,2.90874826,33335.0,33334.0,4.7072101]
[1625716595661,1.90874826,33335.0,33334.0,4.7072101]
[1625716597312,2.90874826,33335.0,33334.0,4.7072101]
[1625716597615,4.14245959,33335.0,33334.0,4.7072101]
[1625716598365,3.14245959,33335.0,33334.0,4.7072101]
[1625716599793,1.85174826,33335.0,33334.0,4.7072101]
[1625716600399,2.55688102,33335.0,33334.0,5.41043501]
[1625716600771,0.27142431,33335.0,33334.0,0.48115088]
[1625716600922,0.01531431,33335.0,33334.0,0.48115088]
[1625716601071,2.30684274,33335.0,33334.0,5.40545618]
[1625716601298,2.29152843,33335.0,33334.0,5.40545618]
[1625716601596,2.30685093,33335.0,33334.0,5.40545618]
[1625716604605,2.52958093,33335.0,33334.0,5.40545618]
[1625716606855,3.52958093,33335.0,33334.0,5.40545618]
[1625716608808,2.52958093,33335.0,33334.0,5.40545618]
[1625716608959,3.30685093,33335.0,33334.0,5.40545618]
[1625716609486,2.30685093,33335.0,33334.0,5.40545618]
[1625716609636,2.30685093,33335.0,33334.0,5.74789618]
[1625716612637,2.30685093,33335.0,33334.0,5.40545618]
[1625716615639,2.64071093,33335.0,33334.0,5.40545618]
[1625716615796,4.8752596,33335.0,33334.0,5.40545618]
[1625716616242,6.28620578,33335.0,33334.0,5.40545618]
[1625716617221,6.28620578,33335.0,33334.0,2.76743549]
[1625716617817,6.52678122,33335.0,33334.0,2.76743549]
[1625716617972,8.11427309,33335.0,33334.0,2.76743549]
[1625716622024,8.11427309,33335.0,33334.0,1.71222721]
[1625716622476,8.11427309,33335.0,33334.0,1.23107633]
[1625716622642,8.11427309,33335.0,33334.0,0.87887711]
[1625716622777,8.11427309,33335.0,33333.0,0.70254593]
[1625716622927,8.11427309,33335.0,33334.0,0.17572244]
[1625716623076,8.09895059,33335.0,33334.0,0.26355019]
[1625716623376,8.11426275,33335.0,33333.0,0.52716733]
[1625716623527,0.0894,33334.0,33333.0,0.52716733]
[1625716623679,0.0894,33334.0,33332.0,0.70262198]
[1625716623680,6.08559785,33334.0,33332.0,0.70262198]
[1625716623831,6.53231661,33333.0,33331.0,0.001]
[1625716624129,6.00958728,33332.0,33331.0,0.001]
[1625716624277,6.06658728,33332.0,33331.0,0.001]
[1625716625855,7.06658728,33332.0,33331.0,0.001]
[1625716627354,7.06658728,33332.0,33328.0,0.70514141]
[1625716627506,4.40545463,33329.0,33328.0,0.70514141]
[1625716627656,9.09655463,33329.0,33328.0,0.70514141]
[1625716627809,10.33713007,33329.0,33328.0,0.70514141]
[1625716627956,10.35244456,33329.0,33328.0,0.70514141]
[1625716628707,10.35244456,33329.0,33328.0,0.001]
[1625716631185,10.33713007,33329.0,33328.0,0.001]
[1625716635918,10.57770551,33329.0,33328.0,0.001]
[1625716636443,10.57770551,33329.0,33327.0,0.2929]
[1625716636595,4.38550556,33328.0,33327.0,0.2929]
[1625716636742,4.72285556,33328.0,33327.0,0.2929]
[1625716637644,5.72285556,33328.0,33327.0,0.2929]
[1625716638545,5.72285556,33328.0,33325.0,0.9756]
[1625716638845,2.98167677,33326.0,33325.0,0.9756]
[1625716638996,3.03867677,33326.0,33325.0,0.9756]
[1625716639899,3.12977677,33326.0,33325.0,0.9756]
[1625716640199,4.12977677,33326.0,33325.0,0.9756]
[1625716644179,4.12977677,33326.0,33325.0,0.9149]
[1625716644330,4.1450718,33326.0,33325.0,0.9149]
[1625716645228,4.1450718,33326.0,33325.0,0.9139]
[1625716645528,4.1450718,33326.0,33325.0,0.8293]
[1625716647106,4.1450718,33326.0,33322.0,0.001]
[1625716647107,5.54054769,33326.0,33322.0,0.001]
[1625716647407,2.96512303,33323.0,33322.0,0.001]
[1625716647556,3.02212303,33323.0,33322.0,0.001]
[1625716647708,3.0374269,33323.0,33322.0,0.001]
[1625716648158,3.51857778,33323.0,33322.0,0.001]
[1625716648457,4.51857778,33323.0,33322.0,0.001]
[1625716648759,5.91371705,33323.0,33322.0,0.001]
[1625716651534,5.91371705,33323.0,33317.0,0.208]
[1625716651833,1.7423938,33318.0,33317.0,0.208]
[1625716651985,2.1251938,33318.0,33317.0,0.208]
[1625716652132,3.60634468,33318.0,33317.0,0.002]
[1625716652283,3.62164963,33318.0,33317.0,0.002]
[1625716653109,3.71264963,33318.0,33317.0,0.002]
[1625716655665,4.93127599,33318.0,33317.0,0.002]
[1625716656790,3.71264963,33318.0,33317.0,0.002]
[1625716657316,3.71264963,33318.0,33316.0,0.24057544]
[1625716657615,0.01530558,33317.0,33316.0,0.24057544]
[1625716657765,1.75561336,33317.0,33316.0,0.24057544]
[1625716657918,2.81261336,33317.0,33316.0,0.24057544]
[1625716658216,2.79730778,33317.0,33316.0,0.24057544]
[1625716658668,1.79730778,33317.0,33316.0,0.24057544]
[1625716658816,2.79730778,33317.0,33316.0,0.24057544]
[1625716660845,2.81261471,33317.0,33316.0,0.24057544]
[1625716661143,2.79730778,33317.0,33316.0,0.24057544]
[1625716661669,1.79730778,33317.0,33316.0,0.24057544]
[1625716661820,2.79730778,33317.0,33316.0,0.24057544]
[1625716661970,2.79730778,33317.0,33314.0,0.001]
[1625716662126,4.03114446,33317.0,33311.0,0.94283578]
[1625716662271,0.69613128,33313.0,33310.0,0.2929]
[1625716662421,0.057,33312.0,33310.0,0.2489]
[1625716662721,1.69568173,33311.0,33310.0,0.1731]
[1625716662871,1.75268173,33311.0,33310.0,0.1028]
[1625716663020,1.75268173,33311.0,33310.0,0.0403]
[1625716663320,1.75268173,33311.0,33309.0,0.002]
[1625716663470,4.00957912,33311.0,33304.0,0.9225]
[1625716663619,4.02481295,33311.0,33304.0,0.9225]
[1625716663770,1.04129324,33307.0,33304.0,0.896]
[1625716663920,0.057,33306.0,33304.0,0.896]
[1625716664071,1.34811371,33306.0,33304.0,0.896]
[1625716664220,1.76204422,33305.0,33304.0,0.896]
[1625716664370,2.81904422,33305.0,33304.0,0.896]
[1625716664522,4.03216725,33305.0,33304.0,0.8357]
[1625716666172,5.43187155,33305.0,33304.0,0.8357]
[1625716666325,5.43187155,33305.0,33304.0,0.8327]
[1625716666474,6.9892092,33305.0,33304.0,0.8327]
[1625716666629,5.43187155,33305.0,33304.0,0.8327]
[1625716667374,5.41663188,33305.0,33304.0,0.8327]
[1625716668949,4.03216725,33305.0,33304.0,0.8327]
[1625716669853,3.03216725,33305.0,33304.0,0.8327]
[1625716670004,2.81904422,33305.0,33304.0,0.8327]
[1625716670154,4.03589391,33305.0,33304.0,0.8327]
[1625716670908,3.97889391,33305.0,33304.0,0.8327]
[1625716671059,1.72172632,33305.0,33304.0,0.8327]
[1625716671358,2.7647962,33305.0,33304.0,0.8327]
[1625716671508,1.7647962,33305.0,33304.0,0.8327]
[1625716671659,2.7647962,33305.0,33304.0,0.8327]
[1625716671959,1.72172632,33305.0,33304.0,0.8327]
[1625716673760,0.72172632,33305.0,33304.0,0.8327]
[1625716673911,1.72172632,33305.0,33304.0,0.8327]
[1625716674660,2.8227244,33305.0,33304.0,0.8327]
[1625716675036,1.8227244,33305.0,33304.0,0.8327]
[1625716675190,0.77872632,33305.0,33304.0,0.8327]
[1625716675335,1.77872632,33305.0,33304.0,0.8327]
[1625716676910,1.72172632,33305.0,33304.0,0.8327]
[1625716677213,1.77872632,33305.0,33304.0,0.8327]
[1625716678115,2.82209432,33305.0,33304.0,0.8327]
[1625716679315,1.77872632,33305.0,33304.0,0.8327]
[1625716679691,2.82116813,33305.0,33304.0,0.8327]
[1625716683751,2.82116813,33305.0,33301.0,0.001]
[1625716683902,1.82116813,33305.0,33301.0,0.001]
[1625716684050,2.82116813,33305.0,33301.0,0.001]
[1625716684203,1.04121164,33302.0,33301.0,0.001]
[1625716684350,1.33878708,33302.0,33301.0,0.001]
[1625716684501,1.28178708,33302.0,33301.0,0.001]
[1625716684652,0.29757544,33302.0,33301.0,0.001]
[1625716684954,1.24057544,33302.0,33301.0,0.001]
[1625716685329,1.32937544,33302.0,33301.0,0.001]
[1625716686304,1.24057544,33302.0,33301.0,0.001]
[1625716687357,1.24057544,33302.0,33298.0,0.001]
[1625716687505,1.58823544,33302.0,33298.0,0.001]
[1625716687806,1.0,33299.0,33298.0,0.001]
[1625716688258,0.24341,33300.0,33298.0,0.001]
[1625716688409,1.24057544,33299.0,33298.0,0.001]
[1625716688863,0.29757544,33299.0,33298.0,0.001]
[1625716689166,1.29757544,33299.0,33298.0,0.001]
[1625716690363,1.53815088,33299.0,33298.0,0.001]
[1625716690590,2.57807363,33299.0,33298.0,0.001]
[1625716690747,2.59321244,33299.0,33298.0,0.001]
[1625716690891,3.80617268,33299.0,33298.0,0.001]
[1625716691412,2.59321244,33299.0,33298.0,0.001]
[1625716691863,3.80539976,33299.0,33298.0,0.001]
[1625716692389,5.18903161,33299.0,33293.0,0.002]
[1625716692539,5.2244053,33299.0,33288.0,0.003]
[1625716692839,3.24787494,33294.0,33288.0,0.003]
[1625716692989,1.0,33289.0,33288.0,0.003]
[1625716693139,1.30654,33289.0,33288.0,0.003]
[1625716693439,1.30654,33289.0,33287.0,0.003]
[1625716694192,0.091,33288.0,33287.0,0.003]
[1625716694339,0.81272632,33288.0,33287.0,0.003]
[1625716694490,0.72172632,33288.0,33287.0,0.003]
[1625716694641,1.72172632,33288.0,33287.0,0.003]
[1625716694942,0.72172632,33288.0,33287.0,0.003]
[1625716695091,1.72172632,33288.0,33287.0,0.003]
[1625716695244,0.72172632,33288.0,33287.0,0.003]
[1625716695392,0.72172632,33288.0,33287.0,0.00716663]
[1625716695767,0.72172632,33288.0,33287.0,0.003]
[1625716695922,0.24057544,33288.0,33287.0,0.00716622]
[1625716696068,3.8081,33291.0,33287.0,1.05694609]
[1625716696217,3.8091,33291.0,33289.0,1.04976859]
[1625716696367,3.8091,33291.0,33290.0,0.24057544]
[1625716696668,3.8091,33291.0,33290.0,0.24474157]
[1625716696966,4.8091,33291.0,33290.0,0.24474157]
[1625716698092,4.8091,33291.0,33290.0,0.24057544]
[1625716698843,4.8091,33291.0,33290.0,0.2447417]
[1625716699668,4.8091,33291.0,33290.0,0.24057544]
[1625716702297,4.8091,33291.0,33290.0,0.24475233]
[1625716702597,4.8091,33291.0,33290.0,0.24057544]
[1625716702899,4.8091,33291.0,33290.0,0.24475219]
[1625716704856,4.8091,33291.0,33290.0,1.29646496]
[1625716705304,4.8081,33291.0,33290.0,0.24475219]
[1625716705605,4.8081,33291.0,33290.0,1.61591233]
[1625716705753,1.0,33291.0,33290.0,1.61591233]
[1625716705902,0.24057544,33292.0,33290.0,1.61591233]
[1625716706052,1.001,33293.0,33290.0,1.61591233]
[1625716706278,1.001,33293.0,33291.0,1.05176242]
[1625716706429,1.001,33293.0,33292.0,0.24057544]
[1625716706577,0.001,33293.0,33292.0,0.24057544]
[1625716706727,0.001,33293.0,33292.0,1.29645696]
[1625716707254,4.6769,33293.0,33292.0,1.29645696]
[1625716708455,5.6769,33293.0,33292.0,1.29645696]
[1625716708905,4.6769,33293.0,33292.0,1.29645696]
[1625716710105,5.6769,33293.0,33292.0,1.29645696]
[1625716710706,4.6769,33293.0,33292.0,1.29645696]
[1625716710855,4.6769,33293.0,33292.0,2.52545477]
[1625716711313,4.6769,33293.0,33292.0,3.92996821]
[1625716711681,5.6769,33293.0,33292.0,3.92996821]
[1625716711833,5.6769,33293.0,33292.0,2.52545477]
[1625716711982,4.6769,33293.0,33292.0,2.52545477]
[1625716712433,4.91747544,33293.0,33292.0,2.52545477]
[1625716712882,4.6769,33293.0,33292.0,2.52545477]
[1625716713033,4.6769,33293.0,33292.0,3.05246654]
[1625716714385,4.6769,33293.0,33292.0,4.45794373]
[1625716717388,4.6759,33293.0,33292.0,4.45794373]
[1625716717538,0.001,33295.0,33292.0,4.45794373]
[1625716717840,0.001,33295.0,33294.0,4.22156485]
[1625716718291,0.001,33295.0,33294.0,4.22573897]
[1625716721219,0.001,33295.0,33294.0,5.81141581]
[1625716722194,0.001,33295.0,33294.0,7.57306906]
[1625716722569,0.001,33295.0,33294.0,7.8136445]
[1625716723621,0.001,33295.0,33294.0,8.5184892]
[1625716724671,0.24057544,33299.0,33294.0,8.5184892]
[1625716724971,0.24057544,33299.0,33298.0,6.5196088]
[1625716725574,0.24057544,33299.0,33298.0,6.52375876]
[1625716726473,0.24057544,33299.0,33298.0,6.5196088]
[1625716726625,0.24057544,33299.0,33298.0,7.00075968]
[1625716726773,0.24057544,33299.0,33298.0,7.00491274]
[1625716733156,0.64527544,33299.0,33298.0,7.00491274]
[1625716733307,0.61197544,33299.0,33298.0,5.41906195]
[1625716733454,1.61197544,33299.0,33298.0,5.41906195]
[1625716733619,2.13677175,33299.0,33298.0,4.00526374]
[1625716733832,2.13677175,33299.0,33298.0,2.77182424]
[1625716733833,3.88488556,33299.0,33298.0,2.77182424]
[1625716734207,5.1079767,33299.0,33298.0,1.71459038]
[1625716734506,5.1079767,33299.0,33298.0,0.48115088]
[1625716734807,6.50505231,33299.0,33298.0,0.48115088]
[1625716734957,6.59595231,33299.0,33298.0,0.48115088]
[1625716735106,6.61113436,33299.0,33298.0,0.48115088]
[1625716736688,6.8517098,33299.0,33298.0,0.48115088]
[1625716739016,5.8517098,33299.0,33298.0,0.48115088]
[1625716739165,6.8517098,33299.0,33298.0,0.48115088]
[1625716739465,6.74562775,33299.0,33298.0,0.48115088]
[1625716739767,5.34855214,33299.0,33298.0,1.71350177]
[1625716740067,4.125461,33299.0,33298.0,1.71350177]
[1625716740217,5.34878649,33299.0,33298.0,1.71350177]
[1625716740518,4.34878649,33299.0,33298.0,1.71350177]
[1625716740668,6.74600199,33299.0,33298.0,0.48115088]
[1625716741195,6.74600199,33299.0,33298.0,0.24057544]
[1625716742246,6.74600199,33299.0,33296.0,0.52815799]
[1625716742543,3.48865819,33297.0,33296.0,0.52815799]
[1625716742693,3.54565819,33297.0,33296.0,0.52815799]
[1625716742844,3.78623363,33297.0,33296.0,0.52815799]
[1625716744575,4.78623363,33297.0,33296.0,0.52815799]
[1625716746555,3.56527303,33297.0,33296.0,2.28862848]
[1625716746975,2.51871045,33297.0,33296.0,2.28862848]
[1625716747278,2.51871045,33297.0,33296.0,3.52088333]
[1625716748253,2.51871045,33297.0,33296.0,2.28862848]
[1625716748778,1.51871045,33297.0,33296.0,2.28862848]
[1625716748932,2.51871045,33297.0,33296.0,2.28862848]
[1625716749604,3.56710875,33297.0,33296.0,2.28862848]
[1625716749831,2.51871045,33297.0,33296.0,2.28862848]
[1625716750357,3.56715554,33297.0,33296.0,2.28862848]
[1625716750898,3.56715554,33297.0,33296.0,1.23234619]
[1625716750899,3.79521554,33297.0,33296.0,1.23234619]
[1625716751183,2.79521554,33297.0,33296.0,1.23234619]
[1625716751408,3.79521554,33297.0,33296.0,1.23234619]
[1625716751558,3.79521554,33297.0,33296.0,2.28881117]
[1625716752908,3.56715554,33297.0,33296.0,2.28881117]
[1625716753361,2.56715554,33297.0,33296.0,2.28881117]
[1625716753510,1.51871045,33297.0,33296.0,3.52139812]
[1625716753961,2.56797491,33297.0,33296.0,3.52139812]
[1625716754862,1.51871045,33297.0,33296.0,3.52139812]
[1625716755837,2.56814727,33297.0,33296.0,3.52139812]
[1625716756892,1.51871045,33297.0,33296.0,3.52554777]
[1625716757039,1.46171045,33297.0,33296.0,3.52554777]
[1625716757192,1.46171045,33297.0,33296.0,4.93498122]
[1625716757565,1.51871045,33297.0,33296.0,4.93498122]
[1625716757869,1.51871045,33297.0,33296.0,3.52554777]
[1625716758017,1.51871045,33297.0,33296.0,4.93500382]
[1625716759291,1.51871045,33297.0,33296.0,3.52554777]
[1625716759444,1.51871045,33297.0,33296.0,4.93507074]
[1625716759668,1.51871045,33297.0,33296.0,3.52554777]
[1625716759819,2.51871045,33297.0,33296.0,3.52554777]
[1625716761546,2.51871045,33297.0,33296.0,4.93542277]
[1625716763126,2.46171045,33297.0,33296.0,4.93542277]
[1625716763275,2.51871045,33297.0,33296.0,4.93542277]
[1625716764179,2.51871045,33297.0,33296.0,5.16863277]
[1625716764331,1.22113501,33297.0,33296.0,5.16863277]
[1625716764776,1.22113501,33297.0,33296.0,9.68893277]
[1625716764927,0.34918589,33298.0,33296.0,11.51558152]
[1625716765228,0.34918589,33298.0,33296.0,11.60468152]
[1625716765379,0.34918589,33298.0,33297.0,0.004159]
[1625716765528,0.52469158,33299.0,33297.0,8.2860147]
[1625716765529,0.001,33299.0,33297.0,8.2860147]
[1625716765828,0.002,33304.0,33298.0,8.28534476]
[1625716766129,0.002,33304.0,33303.0,6.518928]
[1625716766280,0.002,33304.0,33303.0,6.738928]
[1625716766430,0.002,33304.0,33303.0,6.74308493]
[1625716767029,0.002,33304.0,33303.0,7.46481125]
[1625716767182,0.002,33304.0,33303.0,9.22537287]
[1625716768232,0.002,33304.0,33303.0,9.72537287]
[1625716768982,0.002,33304.0,33303.0,9.22537287]
[1625716769736,0.002,33304.0,33303.0,7.46481125]
[1625716770937,0.002,33304.0,33303.0,9.22236722]
[1625716771236,0.002,33304.0,33303.0,9.72236722]
[1625716771536,0.002,33304.0,33303.0,9.22236722]
[1625716773049,0.002,33304.0,33303.0,9.72236722]
[1625716773342,0.002,33304.0,33303.0,7.46481125]
[1625716773505,0.25307,33304.0,33303.0,7.24481125]
[1625716773642,0.25307,33304.0,33303.0,7.24065432]
[1625716773791,0.25307,33304.0,33303.0,5.65496913]
[1625716774695,0.31007,33304.0,33303.0,4.24547118]
[1625716775161,1.31007,33304.0,33303.0,3.01216048]
[1625716775448,2.53302413,33304.0,33303.0,1.25028805]
[1625716775667,2.53302413,33304.0,33303.0,0.8974304]
[1625716775813,2.53302413,33304.0,33303.0,0.65685496]
[1625716775966,3.58049433,33304.0,33301.0,0.05121351]
[1625716776115,1.22203823,33302.0,33300.0,0.52714054]
[1625716776266,0.057,33301.0,33300.0,0.52714054]
[1625716776416,0.057,33301.0,33299.0,0.70286975]
[1625716776417,1.27890026,33301.0,33299.0,1.2300232]
[1625716776566,2.27890026,33301.0,33299.0,1.2300232]
[1625716776716,0.5237347,33300.0,33299.0,1.2300232]
[1625716776867,0.5237347,33300.0,33298.0,1.52308566]
[1625716776868,2.27871336,33300.0,33298.0,1.52308566]
[1625716777016,0.24057544,33299.0,33298.0,1.52308566]
[1625716777167,0.82110548,33299.0,33298.0,1.52308566]
[1625716777318,0.82110548,33299.0,33298.0,0.82012243]
[1625716777768,1.82110548,33299.0,33298.0,0.82012243]
[1625716779421,0.82110548,33299.0,33298.0,0.82012243]
[1625716779571,0.29757544,33299.0,33298.0,1.52309137]
[1625716779872,1.29757544,33299.0,33298.0,1.52309137]
[1625716780024,1.29757544,33299.0,33298.0,0.82012243]
[1625716780171,1.8188204,33299.0,33298.0,0.82012243]
[1625716780321,0.8188204,33299.0,33298.0,0.82012243]
[1625716780623,1.8188204,33299.0,33298.0,0.82012243]
[1625716781673,0.8188204,33299.0,33298.0,0.82012243]
[1625716781823,1.8188204,33299.0,33298.0,0.82012243]
[1625716782273,0.8188204,33299.0,33298.0,0.82012243]
[1625716782424,0.29757544,33299.0,33298.0,1.52300605]
[1625716784751,0.29757544,33299.0,33298.0,2.57746171]
[1625716785201,0.29757544,33299.0,33298.0,2.86693171]
[1625716786403,0.52876544,33299.0,33298.0,2.57746171]
[1625716788130,0.24057544,33299.0,33298.0,2.57746171]
[1625716788286,0.24057544,33299.0,33298.0,3.80751753]
[1625716788580,0.24057544,33299.0,33298.0,5.21330773]
[1625716788881,0.24057544,33299.0,33298.0,6.79478766]
[1625716789031,7.544e-05,33299.0,33298.0,6.79478766]
[1625716789180,7.544e-05,33299.0,33298.0,7.03954787]
[1625716789630,7.544e-05,33299.0,33298.0,7.0353631]
[1625716789931,7.544e-05,33299.0,33298.0,5.45388317]
[1625716791957,0.25590544,33299.0,33298.0,5.45388317]
[1625716792108,1.31290544,33299.0,33298.0,2.81803715]
[1625716792559,1.31290544,33299.0,33298.0,1.76358149]
[1625716792859,1.83394617,33299.0,33298.0,1.76358149]
[1625716793158,1.83394617,33299.0,33298.0,1.06069787]
[1625716794360,0.83394617,33299.0,33298.0,0.53347544]
[1625716794515,2.52760135,33299.0,33298.0,0.53347544]
[1625716797663,2.52760135,33299.0,33298.0,0.2929]
[1625716797963,3.56715584,33299.0,33295.0,1.49218309]
[1625716798116,2.25038908,33296.0,33295.0,0.9648]
[1625716798265,2.30738908,33296.0,33294.0,0.001]
[1625716798416,3.30738908,33296.0,33294.0,0.001]
[1625716798565,2.24933746,33295.0,33294.0,0.001]
[1625716798714,2.30633746,33295.0,33294.0,0.001]
[1625716798865,2.30633746,33295.0,33292.0,0.22897544]
[1625716799089,1.21118932,33293.0,33292.0,0.22897544]
[1625716799240,1.50876476,33293.0,33292.0,0.22897544]
[1625716800291,2.50876476,33293.0,33291.0,0.52744245]
[1625716800439,2.50876476,33293.0,33290.0,0.70328545]
[1625716800440,2.24767704,33292.0,33289.0,0.77005037]
[1625716800590,0.057,33291.0,33289.0,0.77005037]
[1625716800742,0.51870228,33290.0,33289.0,0.77005037]
[1625716800889,1.26717545,33290.0,33289.0,0.24257544]
[1625716801190,2.26717545,33290.0,33289.0,0.24257544]
[1625716801340,2.50775089,33290.0,33289.0,0.002]
[1625716801641,3.54458926,33290.0,33289.0,0.002]
[1625716802392,4.75320937,33290.0,33289.0,0.002]
[1625716802691,4.84400937,33290.0,33289.0,0.002]
[1625716802991,6.22462126,33290.0,33289.0,0.002]
[1625716803141,5.22462126,33290.0,33289.0,0.002]
[1625716803293,6.4651967,33290.0,33289.0,0.002]